bitfinex/quotes_ETHUSD_20230111
["timestamp","ask_amount","ask_price","bid_price","bid_amount"]
[1673455902676,43.31452424,1326.3,1326.2,5.51e-06]
[1673455903281,45.0057016,1326.3,1326.2,5.51e-06]
[1673455903786,43.31452424,1326.3,1326.2,5.51e-06]
[1673455903963,45.00570266,1326.3,1326.2,5.51e-06]
[1673455904283,45.00563515,1326.3,1326.2,5.51e-06]
[1673455906562,41.46182628,1326.3,1326.2,5.51e-06]
[1673455906909,45.00562815,1326.3,1326.2,5.51e-06]
[1673455907221,46.13596209,1326.3,1326.2,5.51e-06]
[1673455907751,41.61451724,1326.3,1326.2,5.51e-06]
[1673455908134,44.43596209,1326.3,1326.2,5.51e-06]
[1673455908874,41.61451724,1326.3,1326.2,0.7646624]
[1673455909431,43.32551724,1326.3,1326.2,0.7646624]
[1673455909590,40.2596187,1326.3,1326.2,0.7646624]
[1673455909939,40.82141793,1326.3,1326.2,0.7646624]
[1673455910146,41.95111365,1326.3,1326.2,0.7646624]
[1673455911693,38.40731178,1326.3,1326.2,0.7646624]
[1673455912131,41.95106465,1326.3,1326.2,0.7646624]
[1673455915785,41.95106465,1326.3,1326.2,0.76122422]
[1673455916778,43.08131309,1326.3,1326.2,0.76122422]
[1673455917101,39.53756022,1326.3,1326.2,0.76122422]
[1673455917258,43.08133876,1326.3,1326.2,0.76122422]
[1673455917904,42.52524381,1326.3,1326.2,4.22e-06]
[1673455918095,39.70379896,1326.3,1326.1,4.26e-06]
[1673455918304,34.90807215,1326.2,1326.1,4.26e-06]
[1673455918556,41.23314028,1326.2,1326.1,4.26e-06]
[1673455918726,41.2331785,1326.2,1326.1,4.26e-06]
[1673455918978,38.97652183,1326.2,1326.0,9.97715887]
[1673455919339,2.5,1326.0,1325.9,0.06073286]
[1673455919504,27.94534398,1326.0,1325.9,0.06073286]
[1673455920445,33.02969931,1326.0,1325.9,0.06073286]
[1673455922143,30.52969931,1326.0,1325.9,0.06073286]
[1673455922357,23.75278359,1326.0,1325.9,0.06073286]
[1673455923967,25.44534398,1326.0,1325.9,0.06073286]
[1673455926140,24.31697039,1326.0,1325.9,0.06073286]
[1673455926800,25.44546448,1326.0,1325.9,0.06073286]
[1673455927016,30.16256806,1326.0,1325.9,0.06073286]
[1673455927332,33.96022793,1326.0,1325.9,0.06073286]
[1673455928349,8.67015438,1326.0,1325.9,0.06073286]
[1673455928768,16.21162438,1326.0,1325.9,0.06073286]
[1673455928996,23.75309438,1326.0,1325.9,0.06073286]
[1673455931407,17.90418477,1326.0,1325.9,0.06073286]
[1673455931621,16.21162438,1326.0,1325.9,0.06073286]
[1673455931851,22.62441,1326.0,1325.9,0.06073286]
[1673455932168,23.75309438,1326.0,1325.9,0.06073286]
[1673455932547,25.44565477,1326.0,1325.9,0.06073286]
[1673455934445,24.31697039,1326.0,1325.9,0.06073286]
[1673455938157,28.71883856,1326.0,1325.9,0.06073286]
[1673455938473,37.61246051,1326.0,1325.9,0.06073286]
[1673455938899,37.61465439,1326.0,1325.9,0.06073286]
[1673455939206,35.35571187,1326.0,1325.9,0.06073286]
[1673455939578,37.61426049,1326.0,1325.9,0.06073286]
[1673455939787,41.15880026,1326.0,1325.9,0.06073286]
[1673455940113,38.3380272,1326.0,1325.9,0.05754319]
[1673455941204,36.07947858,1326.0,1325.9,0.05754319]
[1673455941512,36.64517858,1326.0,1325.9,0.05754319]
[1673455941725,39.46755114,1326.0,1325.9,0.05754319]
[1673455942037,40.03341942,1326.0,1325.9,0.05754319]
[1673455942251,51.74392252,1326.0,1325.9,0.05754319]
[1673455942410,51.92157858,1326.0,1325.9,0.05754319]
[1673455942621,54.74391942,1326.0,1325.9,0.05754319]
[1673455942833,54.74391942,1326.0,1325.9,0.00054319]
[1673455942834,57.01181942,1326.0,1325.9,0.00054319]
[1673455943082,57.76332082,1326.0,1325.9,0.00054319]
[1673455943810,54.37507998,1326.0,1325.9,0.00054319]
[1673455944991,50.83054021,1326.0,1325.9,0.00054319]
[1673455945148,57.19686895,1326.0,1325.9,0.00054319]
[1673455945520,71.79668897,1326.0,1325.9,0.00054319]
[1673455946844,2.5,1325.9,1325.7,0.06718768]
[1673455947086,35.83967279,1325.8,1325.7,0.06718768]
[1673455947309,50.54842441,1325.8,1325.7,7.68e-06]
[1673455947517,7.025,1325.7,1325.6,5.4e-07]
[1673455947731,40.39850887,1325.7,1325.6,5.4e-07]
[1673455948058,40.96430887,1325.7,1325.6,5.4e-07]
[1673455948208,47.40043,1325.7,1325.6,5.4e-07]
[1673455948839,55.07443,1325.7,1325.6,5.4e-07]
[1673455949065,58.48743,1325.7,1325.6,5.4e-07]
[1673455949275,56.23239673,1325.7,1325.6,5.4e-07]
[1673455949711,59.61437737,1325.7,1325.6,5.4e-07]
[1673455949937,57.3593441,1325.7,1325.6,5.4e-07]
[1673455950167,57.35934154,1325.7,1325.6,5.4e-07]
[1673455950322,60.32325743,1325.7,1325.6,5.4e-07]
[1673455950729,58.06822416,1325.7,1325.6,5.4e-07]
[1673455950941,59.19523323,1325.7,1325.6,5.4e-07]
[1673455952150,57.50395827,1325.7,1325.6,5.4e-07]
[1673455954968,50.47895827,1325.7,1325.6,5.4e-07]
[1673455955314,44.04283714,1325.7,1325.6,5.4e-07]
[1673455955477,39.93138882,1325.7,1325.6,5.4e-07]
[1673455955695,42.3498517,1325.7,1325.6,5.4e-07]
[1673455956113,43.47686077,1325.7,1325.6,5.4e-07]
[1673455957975,42.3498517,1325.7,1325.6,5.4e-07]
[1673455958170,48.27188493,1325.7,1325.6,5.4e-07]
[1673455958383,47.698894,1325.7,1325.6,5.4e-07]
[1673455959333,46.57188493,1325.7,1325.6,5.4e-07]
[1673455959938,40.6498517,1325.7,1325.6,5.4e-07]
[1673455960939,37.10437975,1325.7,1325.6,5.4e-07]
[1673455961288,22.62954,1325.7,1325.6,5.4e-07]
[1673455961431,21.51793907,1325.8,1325.6,5.4e-07]
[1673455961780,22.62954,1325.7,1325.6,5.4e-07]
[1673455962618,23.75654907,1325.7,1325.6,5.4e-07]
[1673455963204,22.62954,1325.7,1325.6,5.4e-07]
[1673455963615,7.54318,1325.7,1325.6,5.4e-07]
[1673455964353,15.71745,1325.8,1325.7,1.12299552]
[1673455964562,1.19300907,1325.9,1325.7,1.23529513]
[1673455964802,0.066,1326.0,1325.8,1.708]
[1673455965013,8.66829907,1326.1,1325.8,6.37931758]
[1673455965238,8.67029907,1326.1,1325.8,1.807]
[1673455965448,8.67029907,1326.1,1325.8,1.804]
[1673455965666,8.66829907,1326.1,1325.8,1.708]
[1673455967720,15.64828,1326.1,1325.8,1.708]
[1673455968088,26.00785403,1326.1,1325.7,22.93499552]
[1673455968573,24.31657907,1326.1,1325.7,22.93499552]
[1673455968766,24.31857907,1326.1,1325.7,30.47508552]
[1673455968971,24.31657907,1326.1,1325.7,30.47808552]
[1673455969198,24.31857907,1326.1,1325.7,30.47508552]
[1673455969502,24.31657907,1326.1,1325.7,30.47500041]
[1673455970052,24.31657907,1326.1,1325.7,38.01818041]
[1673455970818,23.75087907,1326.1,1325.7,38.01818041]
[1673455971184,22.62387,1326.1,1325.7,38.01818041]
[1673455974025,22.62387,1326.1,1325.7,36.30518041]
[1673455974281,22.62387,1326.1,1325.8,1.71]
[1673455975219,0.066,1326.2,1325.9,16.79635]
[1673455975436,7.59245,1326.2,1325.9,16.81735]
[1673455975593,7.54245,1326.2,1325.9,16.89535]
[1673455976381,15.08279,1326.2,1325.9,9.35353]
[1673455976695,7.54234,1326.2,1325.9,1.812]
[1673455976904,15.08268,1326.2,1325.9,9.25499]
[1673455977080,15.08268,1326.2,1325.9,9.35399]
[1673455977833,15.08268,1326.2,1325.9,0.099]
[1673455978052,15.08268,1326.2,1325.8,30.7612]
[1673455978219,22.62302,1326.2,1325.9,1.706]
[1673455978428,15.08268,1326.2,1325.9,1.706]
[1673455978690,15.08268,1326.2,1325.9,9.24785]
[1673455978866,0.002,1326.2,1326.0,1.7]
[1673455979075,31.2676,1326.3,1326.0,9.2411]
[1673455979410,0.002,1326.3,1326.0,32.89165822]
[1673455979741,0.08462878,1326.4,1326.0,41.20705822]
[1673455979903,0.08462878,1326.4,1326.2,1.711]
[1673455980487,0.08462878,1326.4,1326.2,9.25133]
[1673455980658,0.08462878,1326.4,1326.2,1.81]
[1673455980858,0.08462878,1326.4,1326.2,1.711]
[1673455981804,0.08462878,1326.4,1326.3,1.711]
[1673455982019,0.08462878,1326.4,1326.3,9.25077]
[1673455982361,0.08462878,1326.4,1326.3,9.34977]
[1673455985307,0.08462878,1326.4,1326.3,1.81]
[1673455985481,0.08462878,1326.4,1326.3,1.711]
[1673455987908,0.08462878,1326.4,1326.3,9.25077]
[1673455988151,0.08462878,1326.4,1326.3,16.88954]
[1673455988880,0.08462878,1326.4,1326.3,9.34977]
[1673455989045,47.25388,1326.6,1326.3,16.88954]
[1673455989251,0.002,1326.6,1326.4,1.711]
[1673455989507,0.66613156,1326.7,1326.5,1.706]
[1673455989835,15.17591156,1326.7,1326.5,1.706]
[1673455989983,15.17791156,1326.7,1326.5,1.706]
[1673455990193,7.64032156,1326.7,1326.5,1.706]
[1673455990470,0.10273156,1326.7,1326.6,1.711]
[1673455990721,0.10073156,1326.7,1326.6,1.711]
[1673455993814,0.10073156,1326.7,1326.5,1.699]
[1673455993815,7.63822156,1326.7,1326.5,1.699]
[1673455994035,7.64022156,1326.7,1326.5,1.699]
[1673455997343,0.00273156,1326.7,1326.5,9.23758]
[1673455997599,0.00073156,1326.7,1326.5,9.33658]
[1673455998039,0.00073156,1326.7,1326.5,10.83658]
[1673455998189,0.00073156,1326.7,1326.5,9.33658]
[1673455998546,0.00073156,1326.7,1326.5,11.33658]
[1673455999551,0.00073156,1326.7,1326.5,9.33658]
[1673456000502,0.00073156,1326.7,1326.5,20.67287064]
[1673456000740,0.00073156,1326.7,1326.6,4.211]
[1673456001065,0.00073156,1326.7,1326.6,1.711]
[1673456003387,0.00073156,1326.7,1326.6,3.711]
[1673456003551,0.00073156,1326.7,1326.6,1.711]
[1673456004397,0.08662878,1326.8,1326.7,0.00126844]
[1673456004641,0.08462878,1326.8,1326.7,0.00126844]
[1673456006710,7.62155878,1326.8,1326.7,0.00126844]
[1673456006921,7.62355878,1326.8,1326.7,0.00126844]
[1673456008181,0.08662878,1326.8,1326.7,0.00126844]
[1673456008424,0.08462878,1326.8,1326.7,0.00126844]
[1673456010421,15.15848878,1326.8,1326.7,0.00126844]
[1673456010584,15.16048878,1326.8,1326.7,0.00126844]
[1673456010793,25.93013744,1326.8,1326.7,0.00126844]
[1673456013562,27.05714651,1326.8,1326.7,0.00126844]
[1673456013769,22.69741878,1326.8,1326.7,0.00126844]
[1673456014001,22.69941878,1326.8,1326.7,0.00126844]
[1673456014158,22.69741878,1326.8,1326.7,0.00126844]
[1673456015778,23.82442785,1326.8,1326.7,0.00126844]
[1673456017654,25.51570281,1326.8,1326.7,0.00126844]
[1673456018618,23.82442785,1326.8,1326.7,0.00126844]
[1673456019746,25.51570281,1326.8,1326.7,0.00126844]
[1673456020912,24.38869374,1326.8,1326.7,0.00126844]
[1673456021119,25.51675126,1326.8,1326.7,0.00126844]
[1673456021981,24.38869374,1326.8,1326.7,0.00126844]
[1673456022832,26.64372701,1326.8,1326.7,0.00126844]
[1673456023261,24.38869374,1326.8,1326.7,0.00126844]
[1673456023423,26.64372701,1326.8,1326.7,0.00126844]
[1673456023632,24.38869374,1326.8,1326.7,0.00126844]
[1673456024441,26.64372701,1326.8,1326.7,0.00126844]
[1673456025560,26.64372701,1326.8,1326.4,43.1491]
[1673456025777,11.16625329,1326.7,1326.4,51.61807822]
[1673456025992,11.16825329,1326.7,1326.4,51.61807822]
[1673456026150,8.66825329,1326.7,1326.4,51.61807822]
[1673456026532,2.82193825,1326.7,1326.5,1.87031155]
[1673456026830,10.35750825,1326.7,1326.5,1.87031155]
[1673456026989,10.35950825,1326.7,1326.4,55.61037922]
[1673456027200,10.35950825,1326.7,1326.4,48.07141922]
[1673456027559,1.13066329,1326.7,1326.5,4.6755809]
[1673456027778,1.12866329,1326.7,1326.5,4.6755809]
[1673456027936,1.12866329,1326.7,1326.5,4.67309473]
[1673456028145,8.66622329,1326.7,1326.5,4.67309473]
[1673456028361,10.35949825,1326.7,1326.5,4.67309473]
[1673456029882,10.35949825,1326.7,1326.4,57.2976671]
[1673456029883,1.12866329,1326.6,1326.4,32.99355922]
[1673456030184,26.56120823,1326.7,1326.6,1.12866328]
[1673456030185,17.96105825,1326.7,1326.6,1.12866328]
[1673456030402,17.89705825,1326.7,1326.6,1.12866328]
[1673456031190,10.35949825,1326.7,1326.6,1.12866328]
[1673456032045,9.23083496,1326.7,1326.6,1.12866328]
[1673456032414,16.76854496,1326.7,1326.6,1.12866328]
[1673456032640,19.02357823,1326.7,1326.6,1.12866328]
[1673456032786,16.76854496,1326.7,1326.6,1.12866328]
[1673456033521,19.02357823,1326.7,1326.6,1.12866328]
[1673456033732,17.89862745,1326.7,1326.6,1.12866328]
[1673456034052,16.76854496,1326.7,1326.6,1.12866328]
[1673456034469,24.30625496,1326.7,1326.6,1.12866328]
[1673456034808,26.56128823,1326.7,1326.6,1.12866328]
[1673456035021,31.48925314,1326.7,1326.6,1.12866328]
[1673456035216,22.26026818,1326.7,1326.6,1.12866328]
[1673456036284,14.72255818,1326.7,1326.6,1.12866328]
[1673456036465,16.41779617,1326.7,1326.6,1.12866328]
[1673456036680,23.95550617,1326.7,1326.6,1.12866328]
[1673456036933,22.26026818,1326.7,1326.6,1.12866328]
[1673456037522,23.9555,1326.7,1326.6,1.12866328]
[1673456037743,22.26026818,1326.7,1326.6,1.12866328]
[1673456040193,22.82566818,1326.7,1326.6,1.12866328]
[1673456040506,22.26026818,1326.7,1326.6,1.12866328]
[1673456041000,25.08055916,1326.7,1326.6,1.12866328]
[1673456041869,16.41764321,1326.7,1326.6,1.12866328]
[1673456042390,19.0270983,1326.7,1326.6,1.12866328]
[1673456042767,11.4896083,1326.7,1326.6,1.12866328]
[1673456042979,9.23457503,1326.7,1326.6,1.12866328]
[1673456043228,11.4896083,1326.7,1326.6,1.12866328]
[1673456043865,19.0270983,1326.7,1326.6,1.12866328]
[1673456044088,11.4896083,1326.7,1326.6,1.12866328]
[1673456044388,19.0270983,1326.7,1326.6,1.12866328]
[1673456044628,23.42603511,1326.7,1326.6,1.12866328]
[1673456044821,21.73095008,1326.7,1326.6,1.12866328]
[1673456046402,9.23464027,1326.7,1326.6,1.12866328]
[1673456046582,17.33201327,1326.7,1326.6,1.12866328]
[1673456046777,19.02736263,1326.7,1326.6,1.12866328]
[1673456046988,19.0273685,1326.7,1326.6,1.12866328]
[1673456048602,11.4898785,1326.7,1326.6,1.12866328]
[1673456048814,10.36511104,1326.7,1326.6,1.12866328]
[1673456049120,10.36511104,1326.7,1326.6,2.99888421]
[1673456049121,8.66970624,1326.7,1326.6,2.99888421]
[1673456049332,8.66970974,1326.7,1326.6,2.99888421]
[1673456049554,7.53949,1326.7,1326.6,2.99888421]
[1673456049705,8.6697114,1326.7,1326.6,2.99888421]
[1673456049911,7.53949,1326.7,1326.6,2.99888421]
[1673456050156,8.66954204,1326.7,1326.6,2.99888421]
[1673456050445,8.66953245,1326.7,1326.6,2.99888421]
[1673456050656,7.53949,1326.7,1326.6,2.99888421]
[1673456050935,8.66953223,1326.7,1326.6,2.99888421]
[1673456051069,7.53949,1326.7,1326.6,2.99888421]
[1673456051542,8.66952738,1326.7,1326.6,2.99888421]
[1673456051717,7.53949,1326.7,1326.6,2.99888421]
[1673456053009,8.66945446,1326.7,1326.6,2.99888421]
[1673456053171,7.53949,1326.7,1326.6,2.99888421]
[1673456053380,8.66945068,1326.7,1326.6,2.99888421]
[1673456053625,7.53949,1326.7,1326.6,2.99888421]
[1673456057968,8.6690765,1326.7,1326.6,2.99888421]
[1673456058139,7.53949,1326.7,1326.6,2.99888421]
[1673456058349,8.66902689,1326.7,1326.6,2.99888421]
[1673456058563,7.53949,1326.7,1326.6,2.99888421]
[1673456058780,8.66902982,1326.7,1326.6,1.12866328]
[1673456059123,8.66903081,1326.7,1326.6,1.12866328]
[1673456059437,7.53949,1326.7,1326.6,1.12866328]
[1673456059605,8.66904526,1326.7,1326.6,1.12866328]
[1673456059813,7.53949,1326.7,1326.6,1.12866328]
[1673456060017,8.66909294,1326.7,1326.6,1.12866328]
[1673456060233,8.6690876,1326.7,1326.6,1.12866328]
[1673456060489,7.53949,1326.7,1326.6,1.12866328]
[1673456060653,8.66906115,1326.7,1326.6,1.12866328]
[1673456060862,7.53949,1326.7,1326.6,1.12866328]
[1673456061429,8.66906283,1326.7,1326.6,1.12866328]
[1673456061642,7.53949,1326.7,1326.6,1.12866328]
[1673456061849,8.66906377,1326.7,1326.6,1.12866328]
[1673456062067,8.66909484,1326.7,1326.6,1.12866328]
[1673456062233,10.36444979,1326.7,1326.6,1.12866328]
[1673456067375,9.23482412,1326.7,1326.6,1.12866328]
[1673456067607,1.69733412,1326.7,1326.6,1.12866328]
[1673456067831,1.69533412,1326.7,1326.6,1.12866328]
[1673456068046,2.82498884,1326.7,1326.6,1.12866328]
[1673456068351,1.69533412,1326.7,1326.6,1.12866328]
[1673456071927,9.23282412,1326.7,1326.6,1.12866328]
[1673456072279,10.36442824,1326.7,1326.6,1.12866328]
[1673456074011,9.23482412,1326.7,1326.6,1.12866328]
[1673456074970,10.36441598,1326.7,1326.6,1.12866328]
[1673456075181,17.90390598,1326.7,1326.6,1.12866328]
[1673456075391,17.90190598,1326.7,1326.6,1.12866328]
[1673456075778,16.77231412,1326.7,1326.6,1.12866328]
[1673456076038,17.89914739,1326.7,1326.6,1.12866328]
[1673456076358,16.76952095,1326.7,1326.6,1.12866328]
[1673456077569,19.02455422,1326.7,1326.6,1.12866328]
[1673456078732,19.02655422,1326.7,1326.6,1.12866328]
[1673456078942,19.02455422,1326.7,1326.6,1.12866328]
[1673456079283,29.09715967,1326.7,1326.6,1.12866328]
[1673456079462,32.48285065,1326.7,1326.6,1.12866328]
[1673456079922,34.98285065,1326.7,1326.6,1.12866328]
[1673456080299,32.48285065,1326.7,1326.6,1.12866328]
[1673456081562,24.94536065,1326.7,1326.6,1.12866328]
[1673456083925,22.12506967,1326.7,1326.6,1.12866328]
[1673456086016,23.81885501,1326.7,1326.6,1.12866328]
[1673456086336,21.55966967,1326.7,1326.6,1.12866328]
[1673456087155,30.79094488,1326.7,1326.6,1.12866328]
[1673456087371,30.79094528,1326.7,1326.6,1.12866328]
[1673456088119,29.09715967,1326.7,1326.6,1.12866328]
[1673456088284,21.55966967,1326.7,1326.6,1.12866328]
[1673456090489,29.09715967,1326.7,1326.6,1.12866328]
[1673456090857,31.91745065,1326.7,1326.6,1.12866328]
[1673456092091,29.09715967,1326.7,1326.6,1.12866328]
[1673456092469,31.91745065,1326.7,1326.6,1.12866328]
[1673456093064,24.37996065,1326.7,1326.6,1.12866328]
[1673456093798,23.83392738,1326.7,1326.6,1.12866328]
[1673456093959,26.09220512,1326.7,1326.6,1.12866328]
[1673456094376,16.29643738,1326.7,1326.6,1.12866328]
[1673456095116,21.05468713,1326.7,1326.6,1.12866328]
[1673456096059,28.59217713,1326.7,1326.6,1.12866328]
[1673456096523,26.09217713,1326.7,1326.6,1.12523608]
[1673456097585,30.80937615,1326.7,1326.6,1.12523608]
[1673456098629,33.62966713,1326.7,1326.6,1.12523608]
[1673456100261,26.09217713,1326.7,1326.6,1.12523608]
[1673456101025,30.80937615,1326.7,1326.6,1.12523608]
[1673456101893,33.62966713,1326.7,1326.6,1.12523608]
[1673456103543,30.80937615,1326.7,1326.6,1.12523608]
[1673456105050,33.62966713,1326.7,1326.6,1.12523608]
[1673456105894,33.62966713,1326.7,1326.6,1.6249421]
[1673456107033,33.63099254,1326.7,1326.6,1.6249421]
[1673456107862,33.63099254,1326.7,1326.6,2.2754971]
[1673456108119,31.37141738,1326.7,1326.6,2.2754971]
[1673456110064,23.83392738,1326.7,1326.6,2.2754971]
[1673456112541,26.0939175,1326.7,1326.6,2.2754971]
[1673456112858,23.83392738,1326.7,1326.6,2.2754971]
[1673456113371,31.37141738,1326.7,1326.6,2.2754971]
[1673456113683,31.32141738,1326.7,1326.6,2.2754971]
[1673456114476,19.55627098,1326.7,1326.6,2.2754971]
[1673456114718,20.12167098,1326.7,1326.6,2.2754971]
[1673456117126,22.38250473,1326.7,1326.6,2.2754971]
[1673456118048,22.38250473,1326.7,1326.6,1.15026102]
[1673456118701,29.91999473,1326.7,1326.6,1.15026102]
[1673456118889,20.12167098,1326.7,1326.6,1.15026102]
[1673456119349,10.87518098,1326.7,1326.6,1.15026102]
[1673456119770,10.30978098,1326.7,1326.6,1.15026102]
[1673456121735,12.57085235,1326.7,1326.6,1.15026102]
[1673456123516,20.10834235,1326.7,1326.6,1.15026102]
[1673456124907,27.64583235,1326.7,1326.6,1.15026102]
[1673456126164,20.10834235,1326.7,1326.6,1.15026102]
[1673456127229,27.64583235,1326.7,1326.6,1.15026102]
[1673456128493,27.64236528,1326.7,1326.6,1.15026102]
[1673456128834,20.10487528,1326.7,1326.6,1.15026102]
[1673456129457,27.64236528,1326.7,1326.6,1.15026102]
[1673456132901,27.09029391,1326.7,1326.6,1.15026102]
[1673456133111,32.91793717,1326.7,1326.6,1.15026102]
[1673456134009,30.09764619,1326.7,1326.6,1.15026102]
[1673456134216,32.92391148,1326.7,1326.6,1.15026102]
[1673456134435,35.19488703,1326.7,1326.6,1.15026102]
[1673456136213,38.42714767,1326.7,1326.6,1.15026102]
[1673456136524,38.99254767,1326.7,1326.6,1.15026102]
[1673456137017,35.60430683,1326.7,1326.6,1.15026102]
[1673456138290,38.99254767,1326.7,1326.6,1.15026102]
[1673456138713,35.60430683,1326.7,1326.6,1.15026102]
[1673456139861,38.42922928,1326.7,1326.6,1.15026102]
[1673456140502,35.60430683,1326.7,1326.6,1.15026102]
[1673456141062,38.42912413,1326.7,1326.6,1.15026102]
[1673456142922,34.63146349,1326.7,1326.6,1.15026102]
[1673456143281,29.93341572,1326.7,1326.6,1.15026102]
[1673456143593,24.82074339,1326.7,1326.6,1.15026102]
[1673456144826,26.51538485,1326.7,1326.6,1.15026102]
[1673456145026,24.82074339,1326.7,1326.6,1.15026102]
[1673456147268,17.28325339,1326.7,1326.6,1.15026102]
[1673456147482,3.95634416,1326.7,1326.6,1.15026102]
[1673456147702,10.36377107,1326.7,1326.6,1.15026102]
[1673456147907,16.7715837,1326.7,1326.6,1.15026102]
[1673456148423,9.2340937,1326.7,1326.6,1.15026102]
[1673456148620,10.36377304,1326.7,1326.6,1.15026102]
[1673456149584,2.82628304,1326.7,1326.6,1.15026102]
[1673456149734,2.82428304,1326.7,1326.6,1.1465619]
[1673456150478,10.36177304,1326.7,1326.6,1.1465619]
[1673456150731,10.36377304,1326.7,1326.6,1.1465619]
[1673456151322,16.7715837,1326.7,1326.6,1.1465619]
[1673456153555,9.2340937,1326.7,1326.6,1.1465619]
[1673456155202,10.36334077,1326.7,1326.6,1.1465619]
[1673456155443,17.90083077,1326.7,1326.6,1.1465619]
[1673456156824,16.20622707,1326.7,1326.6,1.1465619]
[1673456159689,17.90083077,1326.7,1326.6,1.1465619]
[1673456160007,16.20622707,1326.7,1326.6,1.1465619]
[1673456160182,10.36334077,1326.7,1326.6,1.1465619]
[1673456160394,8.66873707,1326.7,1326.6,1.1465619]
[1673456161323,7.53949,1326.7,1326.6,1.1465619]
[1673456165432,8.66842948,1326.7,1326.6,1.1465619]
[1673456165646,15.07698,1326.7,1326.6,1.1465619]
[1673456166580,16.20557835,1326.7,1326.6,1.1465619]
[1673456167537,8.66808835,1326.7,1326.6,1.1465619]
[1673456167789,16.20557835,1326.7,1326.6,1.1465619]
[1673456172781,8.66808835,1326.7,1326.6,1.1465619]
[1673456179444,16.20557835,1326.7,1326.6,1.1465619]
[1673456181238,17.90018205,1326.7,1326.6,1.1465619]
[1673456182836,16.7715837,1326.7,1326.6,1.1465619]
[1673456183506,24.3090737,1326.7,1326.6,1.1465619]
[1673456183818,26.56881416,1326.7,1326.6,1.1465619]
[1673456185076,19.03132416,1326.7,1326.6,1.1465619]
[1673456189181,11.49383416,1326.7,1326.6,1.1465619]
[1673456189389,9.2340937,1326.7,1326.6,1.1465619]
[1673456189607,7.53949,1326.7,1326.6,1.1465619]
[1673456189774,9.23490959,1326.7,1326.6,1.1465619]
[1673456191157,11.49465005,1326.7,1326.6,1.1465619]
[1673456192021,9.23490959,1326.7,1326.6,1.1465619]
[1673456193959,16.77239959,1326.7,1326.6,1.1465619]
[1673456194201,1.69741959,1326.7,1326.6,1.1465619]
[1673456194393,1.69541959,1326.7,1326.6,1.1465619]
[1673456196823,2.82589845,1326.7,1326.6,1.1465619]
[1673456197144,28.41240654,1326.8,1326.6,1.1465619]
[1673456197373,1.69556517,1326.7,1326.6,1.1465619]
[1673456198933,11.49279563,1326.7,1326.6,1.1465619]
[1673456199260,9.23505517,1326.7,1326.6,1.1465619]
[1673456203403,1.69756517,1326.7,1326.6,1.1465619]
[1673456203565,28.41229654,1326.8,1326.6,3.01684979]
[1673456203765,4.19581532,1326.7,1326.6,1.1465619]
[1673456204008,2.82635959,1326.7,1326.6,3.01681947]
[1673456204218,2.26108987,1326.7,1326.6,3.01681947]
[1673456204449,2.82636308,1326.7,1326.6,3.01681947]
[1673456204624,2.26108995,1326.7,1326.6,3.01681947]
[1673456204821,2.8263629,1326.7,1326.6,3.01681947]
[1673456205183,1.13054356,1326.7,1326.6,3.01681947]
[1673456205424,2.26110931,1326.7,1326.6,3.01681947]
[1673456205607,2.82640388,1326.7,1326.6,3.01681947]
[1673456206231,3.95696869,1326.7,1326.6,3.01681947]
[1673456206445,1.13054356,1326.7,1326.6,3.01681947]
[1673456206652,3.95693659,1326.7,1326.6,3.01681947]
[1673456206811,1.13054356,1326.7,1326.6,3.01681947]
[1673456207185,9.79859113,1326.7,1326.6,3.01681947]
[1673456207347,12.62680875,1326.7,1326.6,3.01681947]
[1673456207556,11.49634533,1326.7,1326.6,3.01681947]
[1673456208108,9.80059113,1326.7,1326.6,3.01681947]
[1673456208292,12.62684376,1326.7,1326.6,3.01681947]
[1673456208502,9.80059113,1326.7,1326.6,3.01681947]
[1673456208759,12.62683973,1326.7,1326.6,3.01681947]
[1673456209068,12.6268385,1326.7,1326.6,3.01681947]
[1673456209234,11.49631686,1326.7,1326.6,3.01681947]
[1673456209449,11.49632468,1326.7,1326.6,3.01681947]
[1673456209659,12.62681209,1326.7,1326.6,3.01681947]
[1673456209982,11.49632468,1326.7,1326.6,3.01681947]
[1673456210436,12.62680391,1326.7,1326.6,3.01681947]
[1673456210756,9.80059113,1326.7,1326.6,3.01681947]
[1673456211280,12.62677589,1326.7,1326.6,3.01681947]
[1673456211443,7.53949,1326.7,1326.6,3.01681947]
[1673456211652,10.36567773,1326.7,1326.6,3.01681947]
[1673456211857,7.53949,1326.7,1326.6,3.01681947]
[1673456212068,19.59888023,1326.7,1326.6,3.01681947]
[1673456212278,18.46840426,1326.7,1326.6,1.1465619]
[1673456215959,10.93091426,1326.7,1326.6,1.1465619]
[1673456216534,20.72814472,1326.7,1326.6,1.1465619]
[1673456216692,13.19065472,1326.7,1326.6,1.1465619]
[1673456217221,5.65316472,1326.7,1326.6,1.1465619]
[1673456217680,3.39342426,1326.7,1326.6,1.1465619]
[1673456217853,10.93091426,1326.7,1326.6,1.1465619]
[1673456219956,10.93091313,1326.7,1326.6,1.1465619]
[1673456220166,10.93091313,1326.7,1326.6,3.01684347]
[1673456221018,12.06138732,1326.7,1326.6,3.01682762]
[1673456221227,9.2352003,1326.7,1326.6,3.01682762]
[1673456221443,12.06135714,1326.7,1326.6,3.01682762]
[1673456222580,4.52386714,1326.7,1326.6,1.1465619]
[1673456222789,4.52186714,1326.7,1326.6,1.1465619]
[1673456224264,4.52186714,1326.7,1326.6,1.1465619]
[1673456225313,12.05935714,1326.7,1326.6,1.1465619]
[1673456225522,14.3210976,1326.7,1326.6,1.1465619]
[1673456225732,12.06135714,1326.7,1326.6,1.1465619]
[1673456227056,14.3210976,1326.7,1326.6,1.1465619]
[1673456228831,6.7836076,1326.7,1326.6,1.1465619]
[1673456230098,14.3210976,1326.7,1326.6,1.1465619]
[1673456234454,12.06135714,1326.7,1326.6,1.1465619]
[1673456234880,14.3210976,1326.7,1326.6,1.1465619]
[1673456236596,12.06135714,1326.7,1326.6,3.01684601]
[1673456236856,4.52386714,1326.7,1326.6,3.01682722]
[1673456237015,3.95666441,1326.7,1326.6,3.01682722]
[1673456237230,2.82617121,1326.7,1326.6,3.01682722]
[1673456237479,5.65247193,1326.7,1326.6,3.01682722]
[1673456237686,5.65446873,1326.7,1326.6,3.01682722]
[1673456237854,5.08921393,1326.7,1326.6,3.01682722]
[1673456238070,3.95869171,1326.7,1326.6,3.01682722]
[1673456238419,5.65246518,1326.7,1326.6,3.01682722]
[1673456238597,5.65446171,1326.7,1326.6,3.01682722]
[1673456239739,5.65446171,1326.7,1326.6,2.96682722]
[1673456244822,13.19195171,1326.7,1326.6,1.0965619]
[1673456245210,15.45169217,1326.7,1326.6,1.0965619]
[1673456245457,13.19195171,1326.7,1326.6,2.96684404]
[1673456245679,13.19195171,1326.7,1326.6,1.0965619]
[1673456246598,15.45169217,1326.7,1326.6,1.0965619]
[1673456250374,15.45369217,1326.7,1326.6,1.0965619]
[1673456250578,15.45169217,1326.7,1326.6,1.0965619]
[1673456251245,7.91420217,1326.7,1326.6,1.0965619]
[1673456251440,5.65446171,1326.7,1326.6,2.96682903]
[1673456252311,5.65456264,1326.7,1326.6,2.96682903]